Cogmind - Beta 16 @@@ ROGUE MODE // 2026.02.05 @ 17:54:54 Player: robotix Result: Destroyed self via exploding Fusion Modulator Performance ------------- Evolutions (0) 0 Regions Visited (1) 200 Robots Destroyed (20) 100 Value Destroyed (531) 531 Prototype IDs (0) 0 Alien Tech Used (0) 0 Bonus (0) 0 TOTAL SCORE: 831 Bonus ------- None Cogmind --------- Core Integrity 0/250 Matter 257/300 Energy 250/250 System Corruption 0% Temperature Cool (13) Movement Walking (120) Location -10/Materials Parts ------- > --- POWER (1) -------- Ion Engine > --- PROPULSION (2) --- Aluminum Leg Aluminum Leg > --- UTILITY (2) ------ Small Storage Unit > --- WEAPON (2) ------- Light Assault Rifle Grenade Launcher > --- INVENTORY (8) ---- Aluminum Leg Aluminum Leg Weight Redist. System Medium Laser Particle Gun Assault Rifle Light Assault Rifle Light Assault Rifle Peak State ------------ > --- POWER ------------ Ion Engine > --- PROPULSION ------- Aluminum Leg Aluminum Leg > --- UTILITY ---------- Small Storage Unit Light Armor Plating > --- WEAPON ----------- Assault Rifle Light Assault Rifle > --- INVENTORY -------- Aluminum Leg Aluminum Leg Weight Redist. System Medium Laser Particle Gun Light Assault Rifle Light Assault Rifle Grenade Launcher [Rating: 8] Favorites ----------- Power Ion Engine Engine Ion Engine Propulsion Aluminum Leg Leg Aluminum Leg Utility Small Storage Unit Storage Small Storage Unit Protection Light Armor Plating Weapon Assault Rifle Energy Gun Medium Laser Ballistic Gun Assault Rifle Launcher Grenade Launcher Build | -11 -10 ------- Run | Yrd Mat Slots Evolved . | . . Power . | . . Propulsion . | . . Utility . | . . Weapon . | . . Parts Attached 14 | 1 13 Power 2 | 1 1 Engine 2 | 1 1 Core . | . . Reactor . | . . Propulsion 5 | . 5 Treads . | . . Leg 5 | . 5 Wheel . | . . Hover . | . . Flight . | . . Utility 2 | . 2 Device . | . . Storage 1 | . 1 Processor . | . . Hackware . | . . Protection 1 | . 1 Artifact . | . . Weapon 5 | . 5 Energy Gun 1 | . 1 Energy Cannon . | . . Ballistic Gun 3 | . 3 Ballistic Cannon . | . . Launcher 1 | . 1 Special Weapon . | . . Impact Weapon . | . . Slashing Weapon . | . . Piercing Weapon . | . . Special Melee Weapon . | . . Unidentified Prototypes . | . . Parts Lost 3 | . 3 Power 1 | . 1 Propulsion 1 | . 1 Utility 1 | . 1 Weapon . | . . Highest Loss Streak 1 | . 1 To Critical Strikes . | . . Average Backups 6 | 3 6 Power . | . . Propulsion 2 | . 2 Utility . | . . Weapon 3 | 1 3 Tool/Special . | . . Unused Backups 5 | . 5 Power . | . . Propulsion 2 | . 2 Utility 1 | . 1 Weapon 2 | . 2 Tool/Special . | . . Average Slot Usage (%) 82 | . 82 Engine 5 | . 5 Leg 27 | . 27 Storage 13 | . 13 Protection 8 | . 8 Energy Gun 2 | . 2 Ballistic Gun 24 | . 24 Peak Build Rating 8 | 1 8 Average Rating 6 | . 6 On Entrance . | . 1 Avg Prop Armor Cover (%) . | . . Naked Turns . | . . Heaviest Build 16 | 3 16 Greatest Support 20 | 3 20 Greatest Overweight (x) 1 | . 1 Average Overweight (x) . | . . Largest Inventory Capacity 8 | 5 8 Average Capacity 7 | 5 7 Most Carried 8 | 5 8 Average Carried 6 | 3 6 Final Capacity 8 | 5 8 Final Carried 8 | 5 8 Class Distribution -------------------- 100% | Mutant Dominant Class ---------------- Mutant | -10/Materials Resources | -11 -10 ----------- Run | Yrd Mat Matter Collected 493 | 210 283 Remotely . | . . Salvage Created 605 | . 605 Parts 45 | . 45 Haulers Intercepted 1 | . 1 Recyclers Shooed 1 | . 1 Parts Field Recycled . | . . Retrieved Matter . | . . Parts Self-Destructed . | . . Prevented . | . . Parts Restored . | . . Kills | -11 -10 ------- Run | Yrd Mat Combat Hostiles Destroyed 12 | . 12 Guns 9 | . 9 AOE 3 | . 3 Classes Destroyed 8 | . 8 Worker 3 | . 3 Builder 1 | . 1 Tunneler 1 | . 1 Hauler 1 | . 1 Recycler 1 | . 1 Operator 1 | . 1 Swarmer 3 | . 3 Grunt 9 | . 9 Best Kill Streak 8 | . 8 Combat Bots Only 2 | . 2 Max Kills in Single Turn 6 | . 6 Gunslinging . | . . Exploded 2 | . 2 Melee . | . . Uniques/NPCs Destroyed . | . . Combat | -11 -10 -------- Run | Yrd Mat Hostile Shots Fired 66 | . 66 Missed 16 | . 16 Hits 50 | . 50 Projectile 50 | . 50 Critical Strikes 2 | . 2 Damage Taken 924 | . 924 Core 336 | . 336 Absorbed by Shields . | . . Core Remaining (%) 100 | 100 . Volleys Fired 54 | . 54 Largest 2 | . 2 Hottest 70 | . 70 Shots Fired 107 | . 107 Gun 106 | . 106 Cannon . | . . Launcher 1 | . 1 Special . | . . Kinetic 95 | . 95 Thermal 11 | . 11 Explosive 1 | . 1 Electromagnetic . | . . Robot Hit Streak 7 | . 7 Robot Miss Streak 4 | . 4 Penetration Max . | . . Secondary Targets 1 | . 1 Max Gunslinging Chain 1 | . 1 Shots Hit Robots 63 | . 63 Core Hits 30 | . 30 Critical Kills 1 | . 1 Critical Parts Destroyed . | . . Critical Strikes 2 | . 2 Burn 1 | . 1 Destroy 1 | . 1 Melee Attacks . | . . Impact . | . . Slashing . | . . Piercing . | . . Sneak Attacks . | . . Combat Hostiles . | . . Follow-up Attacks . | . . Damage Inflicted 1280 | . 1280 Guns 714 | . 714 Cannons . | . . Explosions 566 | . 566 Melee . | . . Ramming . | . . Kinetic 602 | . 602 Thermal 557 | . 557 Explosive 121 | . 121 Electromagnetic . | . . Impact . | . . Slashing . | . . Piercing . | . . Highest Corruption . | . . Average Corruption . | . . Corruption Purged . | . . Corruption Blocked . | . . Overload Shots . | . . Overflow Damage 110 | . 110 Projectiles . | . . Explosions 110 | . 110 Melee . | . . Knockbacks . | . . Impact . | . . Kinetic . | . . Secondary . | . . Self-Inflicted Damage 341 | . 341 Shots 4 | . 4 Rammed . | . . Targets Rammed . | . . Kicked . | . . Crushed . | . . Highest Temperature 158 | . 158 Average Temperature 54 | . 54 Received Heat Transfer 342 | . 342 Siege Activations . | . . Martial Activations . | . . Shielding Activations . | . . Robots Disrupted . | . . Combat Hostiles . | . . Robots Corrupted . | . . Combat Hostiles . | . . Parts Fried . | . . Impact Corruptions . | . . Robots Melted . | . . Combat Hostiles . | . . Parts Melted 2 | . 2 Heat Transferred 707 | . 707 Parts Sabotaged . | . . Parts Stolen . | . . Parts Stripped . | . . Power Chain Reactions . | . . Alert | -11 -10 ------- Run | Yrd Mat Maximum Alert Level 1 | . 1 Low Security (%) 66 | 100 65 Level 1 33 | . 34 Level 2 . | . . Level 3 . | . . Level 4 . | . . Level 5 . | . . High Security . | . . Max Security . | . . Peak Influence 319 | . 319 Initial . | . . Average 105 | . 109 Influence Increases 599 | . 599 Destroy 0b10 Robot/C 240 | . 240 Destroy 0b10 Robot/NC 40 | . 40 Destroy Leader 62 | . 62 Disable Machine 195 | . 195 Destroy Structure 62 | . 62 Influence Decreases 273 | . 273 Time Decay 253 | . 253 Lost Part 20 | . 20 Squads Dispatched 3 | . 3 Investigation 2 | . 2 Extermination . | . . Reinforcement 1 | . 1 Assault . | . . Garrison . | . . Intercept . | . . Searches Triggered . | . . Construction Impeded . | . . Haulers Reinforced . | . . Active Scanning Responses . | . . Cargo Convoy Interrupts . | . . Stealth | -11 -10 --------- Run | Yrd Mat Distress Signals 3 | . 3 Communications Jammed . | . . Distress Signals . | . . Times Spotted 24 | . 24 Peak Tracking Total 4 | . 4 Tactical Retreats . | . . Traps | -11 -10 ------- Run | Yrd Mat Traps Triggered 2 | . 2 Indirectly . | . . Trap Hack Attempts . | . . Triggered . | . . Disarmed . | . . Reprogrammed . | . . Reused . | . . Traps Extracted . | . . Installed . | . . Triggered . | . . Machines | -11 -10 ---------- Run | Yrd Mat Machines Disabled 13 | . 13 Max in Single Turn 12 | . 12 Machines Repaired . | . . Machines Dismantled . | . . Machines Sabotaged . | . . Overloaded Fab Kills . | . . Hacking | -11 -10 --------- Run | Yrd Mat Machines Accessed 1 | . 1 Terminals 1 | . 1 Fabricators . | . . Repair Stations . | . . Recycling Units . | . . Scanalyzers . | . . Garrison Access . | . . Total Hacks 1 | . 1 Successful 1 | . 1 Failed . | . . Catastrophic . | . . Database Lockouts . | . . Manual . | . . Terminals 1 | . 1 Fabricators . | . . Repair Stations . | . . Recycling Units . | . . Scanalyzers . | . . Garrison Access . | . . Terminal Hacks 1 | . 1 Locate Traps 1 | . 1 Fabricator Hacks . | . . Repair Station Hacks . | . . Recycling Unit Hacks . | . . Scanalyzer . | . . Garrison Access Hacks . | . . Unauthorized Hacks . | . . Terminals . | . . Fabricators . | . . Repair Stations . | . . Recycling Units . | . . Scanalyzers . | . . Garrison Access . | . . Data Cores Recovered . | . . Used . | . . Hacking Detections . | . . Full Trace Events . | . . Feedback Events . | . . Feedback Blocked . | . . Robot Schematics Acquired . | . . Robots Built . | . . Authchips . | . . Time . | . . Total Robot Build Rating . | . . Part Schematics Acquired . | . . Parts Built . | . . Authchips . | . . Time . | . . Total Part Build Rating . | . . Part Studies Acquired . | . . Parts Repaired . | . . Time . | . . Parts Recycled . | . . Recycled Matter . | . . Retrieved Matter . | . . Retrieved Components . | . . Parts Scanalyzed . | . . Part Schematics Acquired . | . . Parts Damaged . | . . Bothacking | -11 -10 ------------ Run | Yrd Mat Used RIF Installer . | . . Robots Hacked . | . . Non-combat . | . . Combat . | . . Robot Hacks Applied . | . . Relay Couplers Released . | . . Fabnet Peak Effective % . | . . Robots Rewired . | . . Allies Hacked . | . . Hacks Repelled . | . . Allies | -11 -10 -------- Run | Yrd Mat Total Allies . | . . Largest Group . | . . Highest-Rated Group . | . . Highest-Rated Ally . | . . Total Orders . | . . Ally Attacks . | . . Total Damage . | . . Kills . | . . Allies Corrupted . | . . Allies Melted . | . . Intel | -11 -10 ------- Run | Yrd Mat Active Infowar (turns) . | . . Robot Analysis Total . | . . Derelict Logs Recovered . | . . Drone Launches . | . . Drone Recoveries . | . . Exploration | -11 -10 ------------- Run | Yrd Mat Turns Passed 668 | 24 644 Spaces Moved 409 | 34 375 Core 36 | 34 2 Treads . | . . Legs 373 | . 373 Wheels . | . . Hover . | . . Flight . | . . Fastest Speed 50 | 50 50 Average Speed 115 | 50 121 Slowest Speed 190 | 50 190 Overloaded Moves . | . . Propulsion Burnouts . | . . Robots Hopped . | . . Potential Cave-ins . | . . Cave-ins Triggered . | . . Exploration Rate (%) 42 | 3 81 Regions Visited 1 Branch Regions . Pre-discovered Areas . | . . Known Exits Taken . | . . Unknown Exits Taken 1 | 1 . Scrap Searched . | . . Spaces Dug . | . . Terrain Destroyed 78 | . 78 Melee . | . . Projectile . | . . AOE 78 | . 78 Terrain Rammed . | . . Walls Destroyed . | . . Machines Disabled . | . . Actions | -11 -10 --------- Run | Yrd Mat Total 505 | 40 465 Wait 11 | . 11 Move 408 | 33 375 Hop . | . . Pick Up 16 | 6 10 Fast Attach 1 | . 1 Attach 8 | 1 7 Detach . | . . Swap 5 | . 5 Drop 2 | . 2 Fire 54 | . 54 Melee . | . . Ram . | . . Kick . | . . Crush . | . . Escape Stasis . | . . Rewire . | . . Trap . | . . Miscellaneous . | . . Route ------- -11/Scrapyard -10/Materials (discovered 3 exits: [*Mat x2] / [*Min]) History --------- Turn | Location | Event 4 | -11/Scrapyard | Discovered new exit (range 16) 25 | -11/Scrapyard | Entered Materials 324 | -10/Materials | Discovered new exit (range 3) 329 | -10/Materials | Build established: Mutant 447 | -10/Materials | Core integrity fell below 50% 482 | -10/Materials | Discovered new exit (range 16) 606 | -10/Materials | Core integrity fell below 20% 639 | -10/Materials | Discovered new exit (range 13) 669 | -10/Materials | Destroyed self via exploding Fusion Modulator Last Messages --------------- G-34 Mercenary suffers critical hit (Destroy). G-34 Mercenary destroyed. Critical hit (Burn: +37). R-06 Scavenger collects Sml. Laser. G-47 Trooper destroyed. R-06 Scavenger collects Imp. Heat Sink. Acquired 40 matter. R-06 Scavenger collects Ion Engine. Dropped Aluminum Leg. R-06 Scavenger collects Aluminum Leg. EXIT=FOUND Triggered Alarm Trap. An alarm sounds. ALERT: Alarm triggered, dispatching investigation squad. [Achievement: Let's See Who's Tougher] G-34 Mercenary destroyed. Lgt. Armor Plating destroyed. Destroyed Lgt. Armor Plating. Fusion Modulator explodes. Map ----- +----------------------------------------------------+ | | | | | | | | | ???????????????????????????????????????? | | ???????????????????????????????????????? | | ???????????????????????????????????????? | | ???????????????????????????????????????? | | ???????????????????????????????????????? | | ???????????????????????????????????????? | | ???????????????????????????????????????? | | ???????????????????????????????????????? | | ???????????????????????????????????????? | | ???????????????????????????????????????? | | ???????????????????????????????????????? | | ???????????????????????????????????????? | | ???????????????????????????????????????? | | ???????????????????????????????????????? | | ???????????????????????????????????????? | | ???????????????????????????????????????? | | ?????????????????????######????????????? | | ???????????????????###;;#;;????????????? | | ???????????????????#] ;####????????? | | ???????????????????# ; #????????? | | ???????????????????# ;[< #????????? | | ??????#######??????# @ %* #????????? | | ?###### #??????# ==g= #????????? | | ?# #??????#] * #????????? | | ?# T ############ # #???????? | | ?# # """ #???#### ##???????? | | ##+#+## # """ #?????#T #????????? | | ! ## ## """ #?????## #????????? | | ## ## #??????# #????????? | | * """ ## ## ????????# #????????? | | * """ ## ## ??????????# #????????? | | * """ ## ##"############# #????????? | | ## = ! #????????? | | ######## %############+#####?????? | | """"""## #??????# #?????? | | !"| "##^^^##+#####????# #?????? | | "##^^^# #????# ! #?????? | | # #????# !!! #?????? | | < + #????# !!! #?????? | | # #????# !!! #?????? | | #### # #????# #?????? | | #######??# # #????# #?????? | | ??????####+##########??###########?????? | | ??????# #?########?????????? | | ??????# """ """ ""#?# #?????????? | | ??????# """ """ Y"#?# #?????????? | +----------------------------------------------------+ Best States ------------- Heat Dissipation 25 Energy Generation 10 Energy Capacity 250 Matter Stores 300 Matter Capacity 300 Sight Range 16 Terrain Scan Density 10 Armor Coverage 150 Evasion (%) 55 Item Schematics ----------------- None Robot Schematics ------------------ None Fabricated ------------ Nothing Repaired ---------- Nothing Studied --------- None Alien Tech Used ----------------- None Achievements -------------- It Was An Accident, I Swear Let's See Who's Tougher Challenges ------------ None Game ------ Seed ProcessingSuperquantumSuite Manual? 0 Play Time 00:08:53 Cumulative 22.6 hours Start 2026.02.02 @ 23:45:36 End 2026.02.05 @ 17:54:54 Sessions 3 Manual Loads 0 Difficulty Rogue Special Mode None Game No. 20 Rogue 20 Adventurer 0 Explorer 0 Win Type - Total 0 Types 0/0/0/0/0/0/0/0/0/0 Lore% 15 Gallery% 24 Achievement% 20 Wizard Run 0 Options --------- Layout 1 ASCII 0 Keyboard 0 Movement Mouse Keybinds 0 Fullscreen 1 Font 16/SmallcapsGlow Map View 55x38 Zoom Use 0% Tactical HUD 0 Map Filters NONE Filters NONE Steam 1 RUN: 5ea643e8-15fa-414d-8ef8-809aa0a2bd31